[Event "Czech Youth U14 Boys 2024"]
[Site "Kouty nad Desnou"]
[Date "2024.03.16"]
[Round "9.2"]
[White "Kroulik, Vaclav"]
[Black "Martirosyan, David"]
[Result "1/2-1/2"]
[ECO "B11"]
[WhiteElo "1936"]
[BlackElo "1981"]
[Annotator "RC"]
[PlyCount "69"]
[EventDate "2024.03.10"]
[EventType "swiss"]
[EventCountry "CZE"]
[SourceTitle "playchess.com"]
[Source "ChessBase"]
[SourceQuality "1"]
[TimeControl "40/5400+30:1800+30"]

1. e4 {[%emt 0:00:02]} c6 {[%emt 0:00:13]} 2. Nc3 {[%emt 0:00:15]} d5 {[%emt 0:00:36]} 3. Nf3 {[%emt 0:00:07]} Bg4 {[%emt 0:00:59]} 4. h3 {[%emt 0:00:30]} Bxf3 {[%emt 0:00:22]} 5. Qxf3 {[%emt 0:00:09]} e6 {[%emt 0:00:10]} 6. d3 {[%emt 0:01:24]} Nd7 {[%emt 0:01:34]} 7. Bd2 {[%emt 0:01:11]} Qb6 {[%emt 0:01:12]} 8. O-O-O {[%emt 0:05:44]} d4 {[%emt 0:00:21]} 9. Nb1 {[%emt 0:05:24]} a5 {[%emt 0:02:54]} 10. g4 {[%emt 0:08:42]} Nc5 {[%emt 0:13:36]} 11. Na3 {[%emt 0:11:45]} Na4 {[%emt 0:02:45]} 12. Nc4 {[%emt 0:00:16]} Qd8 {[%emt 0:00:20]} 13. e5 {[%emt 0:02:53]} Bc5 {[%emt 0:03:20]} 14. Bg2 {[%emt 0:08:47]} Ne7 {[%emt 0:01:00]} 15. Qf4 {[%emt 0:05:49]} O-O {[%emt 0:03:58]} 16. h4 {[%emt 0:02:58]} b5 {[%emt 0:20:11]} 17. Nd6 {[%emt 0:01:06]} Nd5 {[%emt 0:01:16]} 18. Bxd5 {[%emt 0:01:52]} cxd5 {[%emt 0:00:08]} 19. h5 {[%emt 0:07:48]} Bxd6 {[%emt 0:05:03]} 20. exd6 {[%emt 0:00:21]} f6 {[%emt 0:01:21]} 21. Qxd4 {[%emt 0:09:34]} Qxd6 {[%emt 0:00:20]} 22. g5 {[%emt 0:01:24]} e5 {[%emt 0:01:51]} 23. Qh4 {[%emt 0:01:29]} f5 {[%emt 0:01:17]} 24. d4 {[%emt 0:04:32]} e4 {[%emt 0:02:04]} 25. Qf4 {[%emt 0:01:24]} Ra6 {[%emt 0:03:46]} 26. Qxd6 {[%emt 0:00:27]} Rxd6 {[%emt 0:00:02]} 27. Bxa5 {[%emt 0:00:13]} Re6 {[%emt 0:01:27]} 28. Bc7 {[%emt 0:05:19]} Nb6 {[%emt 0:07:30]} 29. b3 {[%emt 0:01:17]} Rc8 {[%emt 0:02:21]} 30. Bf4 {[%emt 0:00:47]} Rec6 {[%emt 0:01:06]} 31. Rd2 {[%emt 0:00:11]} Rc3 {[%emt 0:02:30]} 32. Be3 {[%emt 0:01:24]} Nd7 {[%emt 0:02:42]} 33. Kb2 {[%emt 0:02:18]} Nf8 {[%emt 0:01:08]} 34. Rh4 {[%emt 0:01:01]} Ne6 {[%emt 0:03:31]} 35. Re2 {[%emt 0:01:07]} 1/2-1/2

[Event "Czech Youth U14 Boys 2024"]
[Site "Kouty nad Desnou"]
[Date "2024.03.16"]
[Round "9.3"]
[White "Popov, Roman"]
[Black "Krivka, Matej"]
[Result "0-1"]
[ECO "E61"]
[WhiteElo "2353"]
[BlackElo "1850"]
[Annotator "TA"]
[PlyCount "74"]
[EventDate "2024.03.10"]
[EventType "swiss"]
[EventCountry "CZE"]
[SourceTitle "playchess.com"]
[Source "ChessBase"]
[SourceQuality "1"]
[TimeControl "40/5400+30:1800+30"]

{[%evp 15,74,27,52,27,78,70,59,65,135,129,126,72,101,68,89,104,93,99,105,76,74,57,72,38,142,137,220,173,182,186,176,129,320,202,407,149,161,160,155,160,164,156,350,-99,0,-43,-29,-39,48,-408,-393,-367,-383,-6403,-6383,-5418,-5418,-5410,-5365,-29990,-29991]} 1. d4 {[%emt 0:00:10]} Nf6 {[%emt 0:00:14]} 2. c4 {[%emt 0:00:07]} g6 {[%emt 0:00:14]} 3. Nc3 {[%emt 0:00:13]} Bg7 {[%emt 0:00:11]} 4. Nf3 {[%emt 0:00:07]} O-O {[%emt 0:00:25]} 5. Bg5 {[%emt 0:00:12][%cal Bc1g5,Bg5h4,Bh4g3][%mdl 32]} d6 {[%emt 0:00:56]} 6. e3 {[%emt 0:00:29]} h6 {[%emt 0:02:19]} 7. Bh4 {[%emt 0:00:30]} Nbd7 {[%emt 0:01:35]} 8. Be2 {[%emt 0:00:51]} c5 {[%emt 0:02:07]} 9. d5 {[%emt 0:07:57]} Ng4 {[%emt 0:07:28]} (9... g5 $11 {keeps the balance.}) 10. O-O {[%emt 0:07:21]} g5 {[%emt 0:05:01]} 11. Bg3 {[%emt 0:02:12][%cal Of3g5] White is slightly better.} Nge5 {[%emt 0:01:32]} (11... f5 $14) 12. Nxe5 $16 {[%emt 0:18:34]} Nxe5 {[%emt 0:00:40]} 13. Qc2 {[%emt 0:01:33]} (13. f4 $142 Ng6 14. fxg5) 13... Bd7 {[%emt 0:11:50]} 14. a3 {[%emt 0:06:29]} Qc8 {[%emt 0:03:57]} 15. f4 {[%emt 0:12:44]} gxf4 {[%emt 0:10:57]} 16. exf4 {[%emt 0:01:16]} Bf5 {[%emt 0:01:54]} 17. Ne4 {[%emt 0:02:35]} Ng4 {[%emt 0:03:08]} 18. Bxg4 {[%emt 0:05:54]} Bxg4 {[%emt 0:00:15]} 19. Rae1 {[%emt 0:04:47]} f5 {[%emt 0:08:32]} (19... Re8 $14) 20. Nf2 {[%emt 0:02:25]} Qd7 (20... Bh5 $16) 21. Nxg4 {[%emt 0:04:33]} fxg4 {[%emt 0:02:54]} 22. Re6 {[%emt 0:00:30]} Rf6 {[%emt 0:06:42]} 23. Rfe1 {[%emt 0:04:41]} (23. f5 $18) 23... Re8 $2 {[%emt 0:08:05]} (23... Rxe6 $16 {was necessary.} 24. Rxe6 Rf8) 24. b3 {[%emt 0:05:32]} a6 $2 {[%emt 0:03:32]} (24... Rxe6 25. Rxe6 Rf8) 25. Qd2 $2 {[%emt 0:05:54]} (25. Bh4 $18 {has better winning chances.} Rxf4 26. Qg6 (26. Rxe7 $2 Rxe7 27. Bxe7 Qxe7 $19)) 25... b5 {[%emt 0:03:50]} 26. Bh4 {[%emt 0:01:39]} Rxe6 {[%emt 0:01:42]} 27. Rxe6 {[%emt 0:00:50]} bxc4 {[%emt 0:01:07]} 28. bxc4 {[%emt 0:00:51]} Qa4 {[%emt 0:02:44] Inhibits Qc2.} (28... Qb7 $16) 29. f5 $2 {[%emt 0:01:26]} (29. Rxe7 $2 Rxe7 30. Bxe7 Qxc4 $19) (29. Bxe7 Qxc4 30. Qd1 Qd4+ (30... Qxf4 31. Bxd6 Qd4+ 32. Qxd4 $11) 31. Qxd4 Bxd4+ 32. Kf1 Kf7 33. Bxd6 Rxe6 34. dxe6+ Kxe6 $19) ({White must play} 29. Qd3 $18) 29... Rb8 {[%emt 0:04:43]} (29... Qxc4 $17 {White must now prevent ...Rb8.} 30. f6 (30. Bxe7 $2 Bd4+ $19) 30... Rf8) 30. Rxe7 {[%emt 0:02:15] [#] And now f6 would win.} Bd4+ {[%emt 0:01:40]} 31. Kh1 {[%emt 0:00:43]} Qxc4 {[%emt 0:02:11]} (31... Qxa3 $2 32. Qxh6 Qa1+ 33. Be1 $18) (31... Be5 $15 32. Qc1 (32. Qxh6 $2 Qd1+) 32... Qb3) 32. Qe1 $2 {[%emt 0:00:36][%mdl 8192]} (32. Re1 $1 $14 {was forced to keep a grip.} Bg7 33. f6) 32... Be5 $1 $19 {[%emt 0:01:56][%cal Oc4d3] ...Qd3! would now be deadly.} 33. f6 {[%emt 0:00:24]} Qd3 {[%emt 0:01:09][%cal Ob8b1] [#] ( -> ...Rb1!)} 34. Qg1 {[%emt 0:00:38]} (34. f7+ Kf8 35. Re8+ Rxe8 36. fxe8=B Kxe8 37. Bg3 Qxd5 (37... Qxa3 38. Bxe5 dxe5 39. Qxe5+ Kd7 40. Qe6+ Kc7 41. Qc6+ Kb8 42. Qd6+ Ka8 43. Kg1 $11) 38. Qb1) 34... Rb1 {[%emt 0:00:51] Active counter play!} (34... Qxd5 35. Qc1 (35. Rg7+ $2 Kf8 $19) 35... Qb3 36. f7+ (36. Qxh6 $2 {is a self mate.} Qd1+) 36... Kg7 37. f8=R+ Kxf8 38. Qxh6+ Kg8 39. Qg6+ Kf8 40. Qf5+ (40. Qxg4 $2 Qb1+) 40... Kg8 41. Qxg4+ Kf8 42. Qf5+ Kg8 43. Be1 $16) 35. Re8+ {[%emt 0:00:21]} Kf7 {[%emt 0:00:17]} 36. Re7+ {[%emt 0:00:12]} Kf8 {[%emt 0:00:31]} 37. Be1 {[%emt 0:00:46]} Bd4 {[%emt 0:00:46] Weighted Error Value: White=1.05/Black=0.43.  Loses game:     	White=1     	Black=2      Missed win:     	White=2     	---        Mistake:       	White=3     	Black=7      Inaccurate:     	White=4     	Black=1      OK:         	White=7     	Black=6      Best:        	White=1     	Black=3      Strong:       	---       	Black=1} 0-1

[Event "Czech Youth U14 Boys 2024"]
[Site "Kouty nad Desnou"]
[Date "2024.03.16"]
[Round "9.4"]
[White "Stara, Zuzana"]
[Black "Vana, Jan"]
[Result "1-0"]
[ECO "B30"]
[WhiteElo "1807"]
[BlackElo "1908"]
[Annotator "RC"]
[PlyCount "120"]
[EventDate "2024.03.10"]
[EventType "swiss"]
[EventCountry "CZE"]
[SourceTitle "playchess.com"]
[Source "ChessBase"]
[SourceQuality "1"]
[TimeControl "40/5400+30:1800+30"]

1. e4 {[%emt 0:00:01]} c5 {[%emt 0:00:14]} 2. Nf3 {[%emt 0:00:03]} Nc6 {[%emt 0:00:03]} 3. Bb5 {[%emt 0:00:03]} e6 {[%emt 0:01:18]} 4. O-O {[%emt 0:00:25]} Nge7 {[%emt 0:00:07]} 5. c3 {[%emt 0:01:00]} a6 {[%emt 0:00:06]} 6. Ba4 {[%emt 0:00:26]} b5 {[%emt 0:01:19]} 7. Bc2 {[%emt 0:00:37]} Bb7 {[%emt 0:01:34]} 8. a3 {[%emt 0:01:26]} Rc8 {[%emt 0:05:15]} 9. d4 {[%emt 0:02:26]} cxd4 {[%emt 0:05:03]} 10. cxd4 {[%emt 0:00:08]} d5 {[%emt 0:06:40]} 11. e5 {[%emt 0:01:25]} h6 {[%emt 0:11:21]} 12. Re1 {[%emt 0:01:58]} Qb6 {[%emt 0:01:50]} 13. Be3 {[%emt 0:03:12]} Na5 {[%emt 0:05:39]} 14. b3 {[%emt 0:05:19]} Nf5 {[%emt 0:04:56]} 15. Bxf5 {[%emt 0:04:03]} exf5 {[%emt 0:00:06]} 16. Bd2 {[%emt 0:02:20]} Nc6 {[%emt 0:19:43]} 17. e6 {[%emt 0:08:45]} fxe6 {[%emt 0:13:53]} 18. Rxe6+ {[%emt 0:00:57]} Kd7 {[%emt 0:02:19]} 19. Re1 {[%emt 0:10:46]} Bd6 {[%emt 0:07:52]} 20. Ne5+ {[%emt 0:16:43]} Bxe5 {[%emt 0:05:40]} 21. dxe5 {[%emt 0:00:05]} Ke6 {[%emt 0:00:19]} 22. Qh5 {[%emt 0:03:02]} Ne7 {[%emt 0:01:06]} 23. Bb4 {[%emt 0:10:37]} Rc2 {[%emt 0:04:15]} 24. Nd2 {[%emt 0:01:59]} Qd4 {[%emt 0:01:01]} 25. Bxe7 {[%emt 0:09:56]} Kxe7 {[%emt 0:00:20]} 26. Qg6 {[%emt 0:04:14]} Qxd2 {[%emt 0:00:44]} 27. Qxg7+ {[%emt 0:00:17]} Ke6 {[%emt 0:00:16]} 28. Qf6+ {[%emt 0:03:17]} Kd7 {[%emt 0:00:02]} 29. Qxf5+ {[%emt 0:03:19]} Kc7 {[%emt 0:00:30]} 30. Qf6 {[%emt 0:02:35]} Rg8 {[%emt 0:01:25]} 31. Qd6+ {[%emt 0:02:13]} Kc8 {[%emt 0:00:04]} 32. Qe6+ {[%emt 0:00:42]} Kc7 {[%emt 0:00:12]} 33. Qxg8 {[%emt 0:00:36]} Qxf2+ {[%emt 0:00:10]} 34. Kh1 {[%emt 0:00:01]} d4 {[%emt 0:00:25]} 35. Rg1 {[%emt 0:01:06]} d3 {[%emt 0:01:24]} 36. e6 {[%emt 0:00:32]} Re2 {[%emt 0:00:47]} 37. Qf7+ {[%emt 0:01:17]} Qxf7 {[%emt 0:00:27]} 38. exf7 {[%emt 0:00:01]} Rf2 {[%emt 0:00:12]} 39. Rad1 {[%emt 0:00:55]} Be4 {[%emt 0:00:25]} 40. Rc1+ {[%emt 0:00:50]} Kd7 {[%emt 0:00:50]} 41. Rce1 {[%emt 0:04:26]} Bc6 {[%emt 0:12:19]} 42. Re3 {[%emt 0:08:08]} d2 {[%emt 0:01:43]} 43. f8=N+ {[%emt 0:01:19]} Kc8 {[%emt 0:03:49]} 44. Rd3 {[%emt 0:06:06]} Be4 {[%emt 0:04:45]} 45. Rd4 {[%emt 0:00:24]} Bc2 {[%emt 0:00:49]} 46. Ne6 {[%emt 0:03:14]} Bxb3 {[%emt 0:00:55]} 47. Nc5 {[%emt 0:00:37]} d1=Q {[%emt 0:02:18]} 48. Rgxd1 {[%emt 0:00:54]} Bxd1 {[%emt 0:00:08]} 49. Rxd1 {[%emt 0:00:01]} Ra2 {[%emt 0:00:16]} 50. Nxa6 {[%emt 0:00:35]} Rxa3 {[%emt 0:00:13]} 51. Nc5 {[%emt 0:00:38]} Kc7 {[%emt 0:00:16]} 52. h3 {[%emt 0:00:57]} Kc6 {[%emt 0:00:38]} 53. Ne4 {[%emt 0:03:53]} b4 {[%emt 0:00:47]} 54. Rd6+ {[%emt 0:01:54]} Kb5 {[%emt 0:00:38]} 55. Rxh6 {[%emt 0:00:54]} Rd3 {[%emt 0:01:25]} 56. Rh5+ {[%emt 0:01:45]} Kc4 {[%emt 0:00:43]} 57. Nc5 {[%emt 0:00:32]} Rd5 {[%emt 0:03:25]} 58. Rxd5 {[%emt 0:00:48]} Kxd5 {[%emt 0:00:02]} 59. Nb3 {[%emt 0:00:23]} Kc4 {[%emt 0:00:41]} 60. Nc1 {[%emt 0:00:35]} Kd5 1-0

[Event "Czech Youth U14 Boys 2024"]
[Site "Kouty nad Desnou"]
[Date "2024.03.16"]
[Round "9.5"]
[White "Svadlenka, Michal"]
[Black "Sotek, Simon"]
[Result "0-1"]
[ECO "C50"]
[WhiteElo "1869"]
[BlackElo "1793"]
[Annotator "NA RC"]
[PlyCount "56"]
[EventDate "2024.03.10"]
[EventType "swiss"]
[EventCountry "CZE"]
[SourceTitle "playchess.com"]
[Source "ChessBase"]
[SourceQuality "1"]
[TimeControl "40/5400+30:1800+30"]

1. e4 {[%emt 0:00:08]} e5 {[%emt 0:00:04]} 2. Nf3 {[%emt 0:00:11]} Nc6 {[%emt 0:00:17]} 3. Bc4 {[%emt 0:00:07]} f5 {[%emt 0:00:06]} 4. d3 {[%emt 0:12:13]} Nf6 {[%emt 0:02:55]} 5. Nbd2 {[%emt 0:07:29]} d6 {[%emt 0:07:03]} 6. c3 {[%emt 0:03:14]} Na5 {[%emt 0:02:34]} 7. Bb5+ {[%emt 0:01:49]} Bd7 {[%emt 0:04:01]} 8. Bxd7+ {[%emt 0:00:51]} Qxd7 {[%emt 0:00:06]} 9. b4 {[%emt 0:05:45]} Nc6 {[%emt 0:00:23]} 10. Qb3 {[%emt 0:02:37]} O-O-O {[%emt 0:01:35]} 11. b5 {[%emt 0:16:51]} Ne7 {[%emt 0:01:06]} 12. O-O {[%emt 0:04:43]} h6 {[%emt 0:07:33]} 13. a4 {[%emt 0:09:48]} g5 {[%emt 0:05:22]} 14. Nc4 {[%emt 0:06:41]} fxe4 {[%emt 0:04:22]} 15. dxe4 {[%emt 0:04:00]} Nxe4 {[%emt 0:07:25]} 16. Be3 {[%emt 0:02:46]} g4 {[%emt 0:14:15]} 17. Nfxe5 {[%emt 0:05:12]} dxe5 {[%emt 0:01:32]} 18. Rfd1 {[%emt 0:02:57]} Nd5 {[%emt 0:01:45]} 19. Nxe5 {[%emt 0:01:50]} Qe6 {[%emt 0:04:29]} 20. Bd4 {[%emt 0:06:41]} Bg7 {[%emt 0:01:36]} 21. Nc6 {[%emt 0:01:52]} Bxd4 {[%emt 0:00:39]} 22. Nxd8 {[%emt 0:01:48]} Bxf2+ {[%emt 0:00:13]} 23. Kh1 {[%emt 0:00:04]} Rxd8 {[%emt 0:00:07]} 24. c4 {[%emt 0:01:11]} Ng3+ {[%emt 0:01:03]} 25. Qxg3 {[%emt 0:01:38]} Bxg3 {[%emt 0:00:11]} 26. cxd5 {[%emt 0:00:05]} Rxd5 {[%emt 0:00:18]} 27. Rxd5 {[%emt 0:00:30]} Qxd5 {[%emt 0:00:16]} 28. hxg3 {[%emt 0:00:02]} Qe5 {[%emt 0:00:24]} 0-1

[Event "Czech Youth U14 Boys 2024"]
[Site "Kouty nad Desnou"]
[Date "2024.03.16"]
[Round "9.6"]
[White "Roubal, Matyas"]
[Black "Macosek, Alex"]
[Result "1-0"]
[ECO "B06"]
[WhiteElo "1849"]
[BlackElo "1781"]
[Annotator "NA RC"]
[PlyCount "29"]
[EventDate "2024.03.10"]
[EventType "swiss"]
[EventCountry "CZE"]
[SourceTitle "playchess.com"]
[Source "ChessBase"]
[SourceQuality "1"]
[TimeControl "40/5400+30:1800+30"]

1. e4 {[%emt 0:00:01]} g6 {[%emt 0:01:32]} 2. d4 {[%emt 0:00:36]} Bg7 {[%emt 0:01:05]} 3. Nc3 {[%emt 0:01:08]} a6 {[%emt 0:00:07]} 4. a4 {[%emt 0:03:24]} d6 {[%emt 0:01:22]} 5. Be3 {[%emt 0:04:45]} Nd7 {[%emt 0:03:07]} 6. Bc4 {[%emt 0:01:32]} e5 {[%emt 0:10:11]} 7. Nf3 {[%emt 0:04:10]} Ne7 {[%emt 0:00:51]} 8. Bxf7+ {[%emt 0:02:24]} Kxf7 {[%emt 0:04:42]} 9. Ng5+ {[%emt 0:00:03]} Kg8 {[%emt 0:00:18]} 10. Ne6 {[%emt 0:00:03]} Qe8 {[%emt 0:00:14]} 11. Nxc7 {[%emt 0:00:02]} Qd8 {[%emt 0:00:11]} 12. Nxa8 {[%emt 0:00:04]} b6 {[%emt 0:00:24]} 13. dxe5 {[%emt 0:00:44]} Bxe5 {[%emt 0:00:58]} 14. Nd5 {[%emt 0:00:29]} Bb7 {[%emt 0:03:03]} 15. Naxb6 {[%emt 0:01:28]} 1-0

[Event "Czech Youth U14 Boys 2024"]
[Site "Kouty nad Desnou"]
[Date "2024.03.16"]
[Round "9.7"]
[White "Komarek, Tobias"]
[Black "Mydlar, Matej"]
[Result "1/2-1/2"]
[ECO "A30"]
[WhiteElo "1822"]
[BlackElo "1819"]
[Annotator "NA RC"]
[PlyCount "121"]
[EventDate "2024.03.10"]
[EventType "swiss"]
[EventCountry "CZE"]
[SourceTitle "playchess.com"]
[Source "ChessBase"]
[SourceQuality "1"]
[TimeControl "40/5400+30:1800+30"]

1. c4 {[%emt 0:00:05]} c5 {[%emt 0:01:35]} 2. Nf3 {[%emt 0:00:20]} Nc6 {[%emt 0:01:32]} 3. d4 {[%emt 0:00:11]} cxd4 {[%emt 0:00:08]} 4. Nxd4 {[%emt 0:00:05]} d6 {[%emt 0:00:06]} 5. e4 {[%emt 0:01:52]} Nf6 {[%emt 0:00:48]} 6. Nc3 {[%emt 0:00:07]} g6 {[%emt 0:01:47]} 7. Be2 {[%emt 0:00:54]} Bg7 {[%emt 0:00:05]} 8. Be3 {[%emt 0:00:11]} O-O {[%emt 0:00:10]} 9. O-O {[%emt 0:00:05]} Bd7 {[%emt 0:01:22]} 10. Qd2 {[%emt 0:00:19]} a5 {[%emt 0:00:17]} 11. f4 {[%emt 0:06:51]} Nxd4 {[%emt 0:02:00]} 12. Bxd4 {[%emt 0:00:05]} Bc6 {[%emt 0:00:08]} 13. Bd3 {[%emt 0:00:56]} Re8 {[%emt 0:18:26]} 14. f5 {[%emt 0:08:12]} a4 {[%emt 0:08:59]} 15. Bc2 {[%emt 0:14:16]} Qa5 {[%emt 0:03:18]} 16. h3 {[%emt 0:11:26]} b5 {[%emt 0:23:52]} 17. cxb5 {[%emt 0:09:42]} Bxb5 {[%emt 0:00:42]} 18. Rf2 {[%emt 0:02:16]} Bc6 {[%emt 0:01:10]} 19. g4 {[%emt 0:09:13]} Qb4 {[%emt 0:01:18]} 20. Rd1 {[%emt 0:19:30]} e5 {[%emt 0:21:52]} 21. Be3 {[%emt 0:11:33]} Rab8 {[%emt 0:05:48]} 22. fxg6 {[%emt 0:02:15]} hxg6 {[%emt 0:00:49]} 23. Qd3 {[%emt 0:01:02]} Re6 {[%emt 0:01:11]} 24. g5 {[%emt 0:00:28]} Nd7 {[%emt 0:02:04]} 25. Rdf1 {[%emt 0:00:17]} f6 {[%emt 0:01:13]} 26. gxf6 {[%emt 0:00:26]} Rxf6 {[%emt 0:01:25]} 27. Nd5 {[%emt 0:00:40]} Bxd5 {[%emt 0:00:43]} 28. Qxd5+ {[%emt 0:00:06]} Kh7 {[%emt 0:00:10]} 29. Rxf6 {[%emt 0:00:14]} Nxf6 {[%emt 0:00:12]} 30. Qe6 {[%emt 0:01:00]} Nh5 {[%emt 0:01:06]} 31. Qd5 {[%emt 0:00:44]} Ng3 {[%emt 0:00:36]} 32. Bd2 {[%emt 0:00:29]} Qd4+ {[%emt 0:00:41]} 33. Qxd4 {[%emt 0:00:18]} exd4 {[%emt 0:00:05]} 34. Rb1 {[%emt 0:00:39]} Re8 {[%emt 0:01:01]} 35. Re1 {[%emt 0:00:26]} d3 {[%emt 0:00:16]} 36. Bxd3 {[%emt 0:00:15]} Bxb2 {[%emt 0:00:10]} 37. Kg2 {[%emt 0:00:18]} Nh5 {[%emt 0:00:26]} 38. Rb1 {[%emt 0:00:46]} a3 {[%emt 0:00:15]} 39. Kf3 {[%emt 0:00:25]} Rf8+ {[%emt 0:00:48]} 40. Ke3 {[%emt 0:00:22]} Ng7 {[%emt 0:01:03]} 41. Bb4 {[%emt 0:03:17]} Re8 {[%emt 0:00:50]} 42. Kd2 {[%emt 0:01:30]} Rd8 {[%emt 0:00:43]} 43. Bc4 {[%emt 0:02:04]} Ne8 {[%emt 0:00:44]} 44. Rf1 {[%emt 0:04:29]} Nf6 {[%emt 0:02:34]} 45. Bd5 {[%emt 0:07:40]} Kg7 {[%emt 0:02:54]} 46. Rf3 {[%emt 0:00:51]} Re8 {[%emt 0:02:33]} 47. Kd3 {[%emt 0:08:15]} Nxd5 {[%emt 0:02:11]} 48. exd5 {[%emt 0:00:05]} Re5 {[%emt 0:00:08]} 49. Kc4 {[%emt 0:02:09]} Re4+ {[%emt 0:00:56]} 50. Kb5 {[%emt 0:00:51]} Rd4 {[%emt 0:00:35]} 51. Bxd6 {[%emt 0:03:47]} Rxd5+ {[%emt 0:01:14]} 52. Bc5 {[%emt 0:00:26]} Rf5 {[%emt 0:02:48]} 53. Rd3 {[%emt 0:01:16]} Kh6 {[%emt 0:00:14]} 54. Kc4 {[%emt 0:00:18]} g5 {[%emt 0:01:31]} 55. Bxa3 {[%emt 0:00:32]} Bxa3 {[%emt 0:00:05]} 56. Rxa3 {[%emt 0:00:05]} Kh5 {[%emt 0:00:08]} 57. Ra8 {[%emt 0:01:15]} Kh4 {[%emt 0:00:09]} 58. a4 {[%emt 0:00:40]} Kxh3 {[%emt 0:00:09]} 59. a5 {[%emt 0:00:04]} g4 {[%emt 0:00:33]} 60. a6 {[%emt 0:00:04]} Ra5 {[%emt 0:00:05]} 61. Kb4 {[%emt 0:00:55]} 1/2-1/2

[Event "Czech Youth U14 Boys 2024"]
[Site "Kouty nad Desnou"]
[Date "2024.03.16"]
[Round "9.8"]
[White "Jezek, Jakub"]
[Black "Kutil, Adam"]
[Result "0-1"]
[ECO "B42"]
[WhiteElo "1854"]
[BlackElo "1820"]
[Annotator "NA RC"]
[PlyCount "60"]
[EventDate "2024.03.10"]
[EventType "swiss"]
[EventCountry "CZE"]
[SourceTitle "playchess.com"]
[Source "ChessBase"]
[SourceQuality "1"]
[TimeControl "40/5400+30:1800+30"]

1. e4 {[%emt 0:00:02]} c5 {[%emt 0:00:34]} 2. Nf3 {[%emt 0:00:08]} e6 {[%emt 0:00:17]} 3. d4 {[%emt 0:00:05]} cxd4 {[%emt 0:00:05]} 4. Nxd4 {[%emt 0:00:05]} a6 {[%emt 0:00:32]} 5. Bd3 {[%emt 0:00:29]} Qc7 {[%emt 0:00:22]} 6. O-O {[%emt 0:00:44]} Nf6 {[%emt 0:01:20]} 7. Qe2 {[%emt 0:01:02]} d6 {[%emt 0:00:56]} 8. Be3 {[%emt 0:02:40]} Nc6 {[%emt 0:00:28]} 9. Nxc6 {[%emt 0:00:11]} bxc6 {[%emt 0:00:08]} 10. c4 {[%emt 0:04:01]} Be7 {[%emt 0:01:22]} 11. f4 {[%emt 0:01:14]} e5 {[%emt 0:03:42]} 12. f5 {[%emt 0:00:21]} d5 {[%emt 0:03:11]} 13. cxd5 {[%emt 0:01:24]} cxd5 {[%emt 0:00:35]} 14. Rc1 {[%emt 0:02:30]} Qb8 {[%emt 0:02:54]} 15. exd5 {[%emt 0:03:19]} O-O {[%emt 0:07:25]} 16. Nc3 {[%emt 0:01:11]} Bb7 {[%emt 0:03:03]} 17. Bc4 {[%emt 0:04:22]} Rd8 {[%emt 0:04:38]} 18. Rd1 {[%emt 0:00:05]} Bb4 {[%emt 0:01:31]} 19. Na4 {[%emt 0:02:00]} Ba5 {[%emt 0:03:51]} 20. Nb6 {[%emt 0:14:22]} Bxb6 {[%emt 0:02:51]} 21. Bxb6 {[%emt 0:00:07]} Rd7 {[%emt 0:00:45]} 22. d6 {[%emt 0:06:55]} Rxd6 {[%emt 0:05:00]} 23. Bc5 {[%emt 0:00:53]} Rc6 {[%emt 0:04:07]} 24. Be3 {[%emt 0:05:04]} Qc8 {[%emt 0:04:04]} 25. Rac1 {[%emt 0:05:33]} Qxf5 {[%emt 0:01:01]} 26. Rf1 {[%emt 0:02:10]} Qg6 {[%emt 0:07:33]} 27. Bb3 {[%emt 0:03:53]} Rxc1 {[%emt 0:03:57]} 28. Rxc1 {[%emt 0:01:15]} Bd5 {[%emt 0:06:36]} 29. Bc4 {[%emt 0:14:52]} h6 {[%emt 0:05:24]} 30. Bxa6 {[%emt 0:03:52]} Rxa6 {[%emt 0:00:59]} 0-1

[Event "Czech Youth U14 Boys 2024"]
[Site "Kouty nad Desnou"]
[Date "2024.03.16"]
[Round "9.9"]
[White "Svadlenka, Dominik"]
[Black "Srba, Daniel"]
[Result "1-0"]
[ECO "D00"]
[WhiteElo "1888"]
[BlackElo "1742"]
[Annotator "NA RC"]
[PlyCount "63"]
[EventDate "2024.03.10"]
[EventType "swiss"]
[EventCountry "CZE"]
[SourceTitle "playchess.com"]
[Source "ChessBase"]
[SourceQuality "1"]
[TimeControl "40/5400+30:1800+30"]

1. d4 {[%emt 0:00:01]} d5 {[%emt 0:00:04]} 2. Nc3 {[%emt 0:00:04]} e6 {[%emt 0:00:14]} 3. Bf4 {[%emt 0:00:16]} Nf6 {[%emt 0:02:46]} 4. Nb5 {[%emt 0:00:15]} Bd6 {[%emt 0:01:11]} 5. Nxd6+ {[%emt 0:00:06]} cxd6 {[%emt 0:00:04]} 6. Nf3 {[%emt 0:00:10]} O-O {[%emt 0:00:38]} 7. e3 {[%emt 0:00:11]} Nc6 {[%emt 0:00:31]} 8. c4 {[%emt 0:02:37]} dxc4 {[%emt 0:00:13]} 9. Bxc4 {[%emt 0:00:45]} d5 {[%emt 0:00:04]} 10. Bd3 {[%emt 0:01:04]} Qa5+ {[%emt 0:03:22]} 11. Qd2 {[%emt 0:06:29]} Qxd2+ {[%emt 0:01:05]} 12. Nxd2 {[%emt 0:00:40]} Nb4 {[%emt 0:00:44]} 13. Bb1 {[%emt 0:00:21]} Rd8 {[%emt 0:00:28]} 14. O-O {[%emt 0:01:32]} b6 {[%emt 0:00:34]} 15. a3 {[%emt 0:01:44]} Nc6 {[%emt 0:02:20]} 16. Bd3 {[%emt 0:02:05]} Nh5 {[%emt 0:03:48]} 17. Bg5 {[%emt 0:06:56]} f6 {[%emt 0:00:15]} 18. Bh4 {[%emt 0:00:37]} g5 {[%emt 0:01:06]} 19. Bg3 {[%emt 0:01:10]} Nxg3 {[%emt 0:00:11]} 20. hxg3 {[%emt 0:00:28]} Nb8 {[%emt 0:09:03]} 21. b4 {[%emt 0:07:24]} e5 {[%emt 0:01:50]} 22. Rac1 {[%emt 0:07:57]} e4 {[%emt 0:03:33]} 23. Nxe4 {[%emt 0:03:33]} f5 {[%emt 0:04:46]} 24. Nxg5 {[%emt 0:02:32]} h6 {[%emt 0:01:19]} 25. Nf3 {[%emt 0:00:44]} Be6 {[%emt 0:00:24]} 26. Rc7 {[%emt 0:01:11]} Nd7 {[%emt 0:01:33]} 27. Nh4 {[%emt 0:00:54]} Rf8 {[%emt 0:00:28]} 28. Rfc1 {[%emt 0:00:13]} Kg7 {[%emt 0:01:01]} 29. R1c6 {[%emt 0:00:49]} Rae8 {[%emt 0:00:42]} 30. Rxe6 {[%emt 0:00:26]} Rxe6 {[%emt 0:00:10]} 31. Rxd7+ {[%emt 0:00:03]} Kf6 {[%emt 0:00:26]} 32. Rxd5 {[%emt 0:01:28]} 1-0